bitfinex-derivatives/quotes_SOLF0:USTF0_20251224
["timestamp","ask_amount","ask_price","bid_price","bid_amount"]
[1766601001634,8.12,122.37,122.31,7.9926]
[1766601002034,0.05966007,122.35,122.33,0.06186066]
[1766601006042,8.17966007,122.35,122.33,0.06186066]
[1766601008661,0.05966007,122.35,122.33,0.06186066]
[1766601009851,15.4779,122.39,122.33,0.62186066]
[1766601010053,8.12,122.38,122.33,0.56]
[1766601010949,0.06109719,122.37,122.34,0.05701677]
[1766601014455,0.00109719,122.37,122.34,0.58701677]
[1766601016953,0.00109719,122.37,122.34,0.05701677]
[1766601017167,8.12109719,122.37,122.34,0.05701677]
[1766601030376,0.00109719,122.37,122.34,7.41791677]
[1766601030673,0.00109719,122.37,122.34,7.68791677]
[1766601033669,0.00109719,122.37,122.34,7.41791677]
[1766601035182,0.00109719,122.37,122.35,0.16]
[1766601035377,0.00109719,122.37,122.34,7.57791677]
[1766601040285,0.00109719,122.37,122.32,7.4216]
[1766601040486,7.47,122.39,122.3,0.12]
[1766601040787,8.12,122.37,122.28,0.12]
[1766601041286,0.05602424,122.34,122.31,0.05900726]
[1766601042284,8.17602424,122.34,122.31,0.05900726]
[1766601042488,8.17602424,122.34,122.27,7.4546]
[1766601042675,8.12,122.34,122.27,0.09]
[1766601042878,8.12,122.31,122.24,2.35364689]
[1766601043074,8.12,122.31,122.24,2.48364689]
[1766601043490,0.05288238,122.29,122.26,0.05238824]
[1766601044078,8.17288238,122.29,122.26,0.00238824]
[1766601045777,8.17288238,122.29,122.22,7.5176]
[1766601046481,8.17288238,122.29,122.23,7.5074]
[1766601046686,0.05323524,122.27,122.25,0.05832157]
[1766601053197,8.17323524,122.27,122.22,7.3676]
[1766601054093,8.17323524,122.27,122.23,0.05332]
[1766601054291,8.17323524,122.27,122.23,7.42082]
[1766601055383,0.05323524,122.27,122.23,7.50082]
[1766601058187,0.05323524,122.27,122.23,0.13332]
[1766601058389,8.17323524,122.27,122.23,0.05332]
[1766601061594,7.46,122.26,122.23,0.05332]
[1766601063797,7.46,122.26,122.15,1.42357489]
[1766601063798,7.46,122.25,122.18,0.02]
[1766601064502,14.827,122.24,122.18,0.02]
[1766601064703,7.46,122.23,122.18,0.02]
[1766601064902,7.51556783,122.22,122.15,0.07]
[1766601065095,7.46,122.21,122.15,0.07]
[1766601065798,7.46,122.2,122.17,0.05939996]
[1766601066006,7.51335426,122.19,122.13,0.06]
[1766601066299,7.51335426,122.19,122.11,0.11]
[1766601066604,7.46,122.18,122.12,7.3736]
[1766601066903,0.05785095,122.16,122.14,0.05180125]
[1766601067099,0.05785095,122.16,122.1,7.3749]
[1766601067100,7.51785095,122.16,122.1,7.3749]
[1766601067405,7.46,122.16,122.1,7.3749]
[1766601068102,0.05267756,122.14,122.12,0.02948141]
[1766601069905,0.05267756,122.14,122.09,7.5259]
[1766601070105,0.05267756,122.14,122.09,0.15]
[1766601071706,0.05267756,122.14,122.1,7.3752]
[1766601072909,7.46,122.17,122.11,7.5045]
[1766601073101,7.46,122.17,122.12,0.13]
[1766601074108,0.05610019,122.16,122.13,0.05267756]
[1766601079512,7.51610019,122.16,122.13,0.05267756]
[1766601086718,7.51610019,122.16,122.13,0.00267756]
[1766601086920,7.51610019,122.16,122.1,0.08]
[1766601088610,7.51610019,122.16,122.1,7.4553]
[1766601093422,7.51610019,122.16,122.11,7.3745]
[1766601104927,7.37,122.15,122.08,10.13933298]
[1766601105135,0.05384774,122.13,122.08,10.13933298]
[1766601106536,0.05384774,122.13,122.1,7.3752]
[1766601108034,7.42384774,122.13,122.09,7.3759]
[1766601109244,7.42384774,122.13,122.09,17.51523298]
[1766601109549,0.05384774,122.13,122.1,7.3753]
[1766601109750,0.05384774,122.13,122.09,11.54153048]
[1766601109941,7.37,122.15,122.09,11.54153048]
[1766601110245,7.37,122.15,122.1,10.13933298]
[1766601110649,7.37,122.15,122.11,7.3747]
[1766601110947,0.05725778,122.14,122.12,0.05384774]
[1766601114949,7.42725778,122.14,122.12,0.00384774]
[1766601116645,7.42725778,122.14,122.09,7.3754]
[1766601117451,7.42725778,122.14,122.1,7.3753]
[1766601119049,7.42725778,122.14,122.08,17.51533298]
[1766601119555,7.42725778,122.14,122.08,10.13933298]
[1766601120254,7.37,122.13,122.07,17.51613298]
[1766601120445,0.05906061,122.11,122.07,7.3768]
[1766601123758,7.67906061,122.11,122.07,7.3768]
[1766601128367,0.05906061,122.11,122.07,7.3768]
[1766601131156,7.67906061,122.11,122.07,7.3768]
[1766601131362,0.05906061,122.11,122.08,7.3764]
[1766601131560,32.21709808,122.2,122.09,7.43]
[1766601131762,1.4021975,122.19,122.09,7.43]
[1766601131964,1.4021975,122.19,122.12,7.3741]
[1766601132564,0.06071622,122.17,122.14,0.05892935]
[1766601132761,0.06071622,122.17,122.12,7.3741]
[1766601133559,7.68071622,122.17,122.12,7.3741]
[1766601134568,0.06071622,122.17,122.12,14.8241]
[1766601139866,0.06071622,122.17,122.12,7.45]
[1766601142270,0.00071622,122.17,122.13,7.45]
[1766601143167,0.00071622,122.17,122.14,0.06013126]
[1766601143372,0.00071622,122.17,122.14,7.51013126]
[1766601143576,0.00071622,122.17,122.15,7.3723]
[1766601144166,0.00071622,122.17,122.15,14.8223]
[1766601145674,7.62,122.2,122.15,14.8223]
[1766601146871,0.05596753,122.19,122.15,14.8223]
[1766601152575,24.59,122.24,122.14,0.06013126]
[1766601152576,7.72,122.23,122.17,7.67]
[1766601153668,0.06009338,122.21,122.19,0.0535582]
[1766601156277,7.78009338,122.21,122.14,15.0726]
[1766601156976,15.14889338,122.21,122.14,15.0726]
[1766601157183,15.14889338,122.21,122.16,0.05948056]
[1766601157376,0.06241235,122.2,122.16,0.05948056]
[1766601162685,7.54241235,122.2,122.16,0.05948056]
[1766601163274,0.06241235,122.2,122.16,7.35948056]
[1766601163682,7.48,122.22,122.16,14.73108056]
[1766601164589,0.05394922,122.2,122.16,14.73108056]
[1766601172699,0.05394922,122.2,122.16,7.35948056]
[1766601172903,7.53394922,122.2,122.16,0.05948056]
[1766601175114,14.85,122.19,122.16,0.05948056]
[1766601178016,7.48,122.19,122.16,0.05948056]
[1766601179207,0.05394922,122.2,122.16,7.35948056]
[1766601180311,7.48,122.23,122.18,7.3]
[1766601181208,0.05487643,122.22,122.19,7.43144407]
[1766601181411,7.17,122.27,122.19,7.81164407]
[1766601181612,7.17,122.27,122.19,7.75]
[1766601182522,0.05570079,122.24,122.22,0.05840198]
[1766601184211,7.22570079,122.24,122.18,15.12]
[1766601184412,7.22570079,122.24,122.18,7.75]
[1766601185215,7.22570079,122.24,122.2,0.06100372]
[1766601185614,14.59270079,122.24,122.2,0.06100372]
[1766601195034,7.22570079,122.24,122.2,0.06100372]
[1766601195330,0.05570079,122.24,122.2,7.81100372]
[1766601217453,7.93570079,122.24,122.2,0.06100372]
[1766601217767,15.2476,122.23,122.2,0.06100372]
[1766601221071,7.88,122.23,122.2,0.06100372]
[1766601221375,15.30270079,122.24,122.2,0.06100372]
[1766601227581,0.05570079,122.24,122.2,7.86100372]
[1766601237979,7.88,122.28,122.21,7.66]
[1766601238187,7.88,122.28,122.22,7.66]
[1766601239180,0.05795222,122.26,122.24,0.05959388]
[1766601242186,15.2445,122.28,122.24,7.46959388]
[1766601242886,1.40062584,122.29,122.24,7.46959388]
[1766601243088,60.87,122.3,122.24,7.46959388]
[1766601243279,0.05987166,122.28,122.24,7.46959388]
[1766601243672,53.12,122.3,122.24,7.46959388]
[1766601244582,53.12,122.3,122.25,7.41]
[1766601244786,0.0616764,122.29,122.25,7.41]
[1766601245181,8.76252584,122.33,122.27,7.41]
[1766601245381,16.51252584,122.33,122.27,7.41]
[1766601245985,7.75,122.32,122.27,7.41]
[1766601246185,9.21317504,122.31,122.28,0.05718017]
[1766601246376,9.21317504,122.31,122.25,7.41]
[1766601247287,9.21317504,122.31,122.27,0.05784988]
[1766601247686,15.1135,122.3,122.27,0.05784988]
[1766601247987,15.1135,122.3,122.25,7.41]
[1766601248285,16.51462584,122.29,122.23,7.41]
[1766601248884,0.05516603,122.27,122.25,0.05787434]
[1766601249293,7.80516603,122.27,122.21,7.41]
[1766601249785,8.82089187,122.27,122.21,7.41]
[1766601249985,7.75,122.26,122.21,7.41]
[1766601250387,7.75,122.26,122.22,0.05675818]
[1766601251588,15.1158,122.26,122.22,0.05675818]
[1766601251791,7.75,122.26,122.22,0.05675818]
[1766601251988,7.75,122.25,122.19,7.41]
[1766601253092,0.06257943,122.23,122.21,0.05386868]
[1766601254786,7.81257943,122.23,122.21,0.00386868]
[1766601258201,7.81257943,122.23,122.17,7.41]
[1766601259200,7.81257943,122.23,122.19,0.06177946]
[1766601260406,0.06257943,122.23,122.19,0.06177946]
[1766601267211,0.06257943,122.23,122.19,7.47177946]
[1766601283618,7.3663,122.25,122.19,7.47177946]
[1766601283820,9.08062584,122.27,122.19,7.47177946]
[1766601284025,9.08062584,122.27,122.19,7.41]
[1766601284621,7.3658,122.26,122.2,7.16]
[1766601284920,0.05956792,122.24,122.22,0.06018423]
[1766601286326,7.3658,122.26,122.22,7.22018423]
[1766601286526,7.68,122.27,122.22,7.22018423]
[1766601286723,52.2,122.29,122.23,7.16]
[1766601286930,44.52,122.29,122.23,7.16]
[1766601287321,0.06138242,122.27,122.25,0.05587103]
[1766601289127,0.00138242,122.27,122.25,0.05587103]
[1766601291830,0.00138242,122.27,122.23,7.16]
[1766601292831,0.00138242,122.27,122.24,7.22038024]
[1766601293032,0.06225717,122.27,122.24,7.22038024]
[1766601298138,0.00225717,122.27,122.24,7.22038024]
[1766601300434,15.0427,122.31,122.25,7.09]
[1766601301233,0.05576436,122.29,122.27,0.05872187]
[1766601305939,0.05576436,122.29,122.25,7.09]
[1766601306839,0.05576436,122.29,122.26,7.11409543]
[1766601307036,0.05525646,122.29,122.26,7.11369596]
[1766601316755,7.60525646,122.29,122.26,0.05369596]
[1766601317640,14.96925646,122.29,122.26,0.05369596]
[1766601320350,7.60525646,122.29,122.26,0.05369596]
[1766601324955,0.05525646,122.29,122.26,0.05369596]
[1766601339169,14.39945646,122.29,122.26,0.05369596]
[1766601344271,6.98,122.27,122.22,17.08933298]
[1766601344477,6.98,122.27,122.22,6.95]
[1766601345370,0.05694114,122.26,122.23,0.05993946]
[1766601345978,7.03694114,122.26,122.23,0.05993946]
[1766601346888,14.3463,122.25,122.2,10.13933298]
[1766601347087,14.3463,122.25,122.2,7.05]
[1766601348089,14.3463,122.25,122.21,0.05636317]
[1766601349690,6.98,122.25,122.21,7.10636317]
[1766601349889,0.05694114,122.26,122.21,7.10636317]
[1766601350976,7.03694114,122.26,122.21,7.10636317]
[1766601354884,0.05694114,122.26,122.21,7.10636317]
[1766601358397,0.05694114,122.26,122.21,14.47476317]
[1766601358590,1.40003251,122.28,122.22,6.97]
[1766601358786,8.38003251,122.28,122.22,6.97]
[1766601359592,0.05292868,122.26,122.24,0.06163826]
[1766601363997,14.2433,122.3,122.24,7.02163826]
[1766601364198,14.2433,122.3,122.24,6.96]
[1766601365094,6.93915444,122.28,122.22,6.91]
[1766601366091,6.93915444,122.28,122.24,0.0567183]
[1766601366603,14.30375444,122.28,122.24,0.0567183]
[1766601367200,14.30375444,122.28,122.24,7.0267183]
[1766601372401,14.30375444,122.28,122.24,0.0567183]
[1766601376304,7.42375444,122.28,122.24,0.0567183]
[1766601376609,6.88,122.37,122.27,6.95]
[1766601376809,6.88,122.37,122.29,6.95]
[1766601377209,8.28003251,122.35,122.26,6.95]
[1766601377516,0.06122618,122.32,122.29,0.05157647]
[1766601378313,6.94122618,122.32,122.29,0.05157647]
[1766601385517,0.06122618,122.32,122.29,6.99157647]
[1766601389518,0.06122618,122.32,122.29,14.35537647]
[1766601389909,6.88,122.36,122.3,6.93]
[1766601390820,0.0514921,122.34,122.32,0.05578363]
[1766601393116,6.88,122.36,122.32,0.05578363]
[1766601393313,7.55,122.38,122.32,6.91578363]
[1766601393616,7.55,122.4,122.32,6.91578363]
[1766601393807,7.55,122.4,122.32,6.86]
[1766601394304,0.05969159,122.37,122.35,0.05883271]
[1766601394501,0.0535971,122.37,122.35,0.05544105]
[1766601397818,6.8935971,122.37,122.31,6.85]
[1766601398019,6.84,122.37,122.31,6.85]
[1766601398821,0.05641521,122.35,122.33,0.05595748]
[1766601405425,8.24003251,122.38,122.33,0.05595748]
[1766601405426,8.24003251,122.38,122.33,6.93595748]
[1766601405621,6.84,122.38,122.33,6.93595748]
[1766601406418,0.05276292,122.37,122.33,14.29715748]
[1766601409621,0.00276292,122.37,122.34,6.88]
[1766601410628,0.00276292,122.37,122.35,14.2003]
[1766601411526,0.00276292,122.37,122.35,6.84]
[1766601415932,0.00276292,122.37,122.33,6.88595748]
[1766601416831,6.84276292,122.37,122.33,0.05595748]
[1766601417441,0.00276292,122.37,122.33,6.88595748]
[1766601419025,0.00276292,122.37,122.34,6.83]
[1766601419829,0.00276292,122.37,122.33,7.41685748]
[1766601420026,0.00276292,122.37,122.33,14.24685748]
[1766601421039,0.00276292,122.37,122.34,6.83]
[1766601421428,0.00276292,122.37,122.33,0.05595748]
[1766601423730,0.00276292,122.37,122.34,6.83]
[1766601424133,0.00276292,122.37,122.33,7.41735748]
[1766601426135,0.00276292,122.37,122.33,14.23735748]
[1766601428627,0.00276292,122.37,122.34,6.82]
[1766601430538,0.00276292,122.37,122.33,7.41735748]
[1766601436140,0.00276292,122.37,122.33,14.22735748]
[1766601452352,0.00276292,122.37,122.34,7.3609]
[1766601470673,0.00276292,122.37,122.33,14.22715748]
[1766601474675,0.00276292,122.37,122.33,24.36649046]
[1766601476878,0.00276292,122.37,122.33,14.22715748]
[1766601478369,0.00276292,122.37,122.33,24.36649046]
[1766601481382,0.00276292,122.37,122.34,7.3608]
[1766601481573,0.00276292,122.37,122.34,14.1108]
[1766601486090,6.98,122.41,122.36,6.75]
[1766601487179,0.05221207,122.4,122.37,6.79623956]
[1766601487373,0.06061875,122.4,122.37,6.79348293]
[1766601487572,6.98,122.43,122.38,14.0384]
[1766601487884,6.98,122.45,122.39,6.68]
[1766601488375,8.37735033,122.44,122.39,6.68]
[1766601488572,0.06200028,122.43,122.4,0.05744975]
[1766601488780,7.04200028,122.43,122.37,6.68]
[1766601488979,8.37735033,122.42,122.37,6.68]
[1766601489787,0.06271337,122.41,122.38,0.06169867]
[1766601491282,7.04271337,122.41,122.38,0.06169867]
[1766601491487,0.06271337,122.41,122.38,6.80169867]
[1766601493084,0.06271337,122.41,122.38,0.06169867]
[1766601516014,6.92271337,122.41,122.38,0.00169867]
[1766601517713,14.27961337,122.41,122.38,0.00169867]
[1766601518614,7.36,122.4,122.35,13.8498]
[1766601518816,7.36,122.4,122.35,6.49]
[1766601519233,7.36,122.4,122.34,7.3607]
[1766601519519,7.36,122.37,122.36,0.05198606]
[1766601519722,7.36,122.37,122.31,6.5]
[1766601520430,7.36,122.37,122.32,6.48]
[1766601520614,7.41467373,122.36,122.33,0.05909681]
[1766601520921,7.41467373,122.36,122.29,6.54]
[1766601521115,7.36,122.36,122.29,6.54]
[1766601521718,0.05673623,122.34,122.31,0.05191647]
[1766601522721,7.41673623,122.34,122.31,0.05191647]
[1766601529631,0.05673623,122.34,122.31,0.05191647]
[1766601530621,7.41673623,122.34,122.31,0.00191647]
[1766601530829,7.41673623,122.34,122.25,6.46]
[1766601531024,7.362,122.33,122.26,7.3656]
[1766601531225,7.36,122.32,122.26,13.8156]
[1766601531829,0.06044882,122.3,122.28,0.05748567]
[1766601547455,7.36,122.32,122.28,0.05748567]
[1766601547851,7.36,122.32,122.28,6.32748567]
[1766601548052,13.8909,122.34,122.28,6.32748567]
[1766601548243,6.53,122.36,122.29,6.27]
[1766601548448,0.05531834,122.34,122.31,0.06084851]
[1766601554163,6.53,122.37,122.31,6.27084851]
[1766601554380,6.53,122.37,122.31,6.21]
[1766601554665,6.53,122.4,122.31,6.21]
[1766601555257,0.06179195,122.37,122.34,0.05226195]
[1766601573871,6.52,122.4,122.34,6.09226195]
[1766601574864,0.06242808,122.38,122.35,13.3302]
[1766601580369,0.06242808,122.38,122.34,7.41316195]
[1766601581675,0.06242808,122.38,122.34,13.32316195]
[1766601588781,0.06242808,122.38,122.35,5.87]
[1766601597184,15.11374077,122.41,122.35,5.87]
[1766601597386,7.75704077,122.43,122.35,5.87]
[1766601598483,0.05246309,122.4,122.38,0.05512703]
[1766601599687,7.75704077,122.43,122.38,5.85512703]
[1766601599880,6.36,122.44,122.38,5.85512703]
[1766601600486,6.36,122.43,122.38,13.21362703]
[1766601601094,0.05384147,122.42,122.38,13.21362703]
[1766601601387,6.41384147,122.42,122.38,7.41362703]
[1766601601692,6.41384147,122.42,122.38,0.05512703]
[1766601603892,6.37,122.41,122.38,0.05512703]
[1766601606197,6.37,122.4,122.35,5.78]
[1766601606497,6.37,122.4,122.34,5.83]
[1766601607086,13.7276,122.4,122.34,5.83]
[1766601607397,0.05737093,122.38,122.36,0.0541488]
[1766601608586,6.37,122.42,122.36,5.8741488]
[1766601609693,0.06290854,122.4,122.36,13.2337488]
[1766601611195,0.06290854,122.4,122.37,5.74]
[1766601632412,0.06290854,122.4,122.36,0.0541488]
[1766601633211,0.06290854,122.4,122.36,5.4441488]
[1766601638709,7.42040854,122.4,122.36,5.4441488]
[1766601638912,0.06290854,122.4,122.36,5.4441488]
[1766601656431,6.64290854,122.4,122.36,0.0541488]
[1766601657632,14.00030854,122.4,122.36,0.0541488]
[1766601658520,13.9379,122.39,122.34,4.95]
[1766601659329,0.06290854,122.4,122.34,4.95]
[1766601659535,6.64290854,122.4,122.36,0.05600632]
[1766601660529,14.00020854,122.4,122.36,0.05600632]
[1766601661832,6.64290854,122.4,122.36,4.89600632]
[1766601662034,0.06290854,122.4,122.36,4.89600632]
[1766601676960,96.54,122.44,122.37,4.57]
[1766601676961,102.57,122.44,122.37,4.57]
[1766601678061,0.06252642,122.42,122.39,4.62283921]
[1766601682561,0.00252642,122.42,122.39,4.62283921]
[1766601682962,88.72145287,122.44,122.39,4.62283921]
[1766601683367,88.72145287,122.44,122.39,7.42073921]
[1766601684071,82.33145287,122.44,122.39,7.42073921]
[1766601684969,13.3837,122.46,122.39,7.42073921]
[1766601685155,0.06287001,122.44,122.39,7.42073921]
[1766601686262,0.00287001,122.44,122.39,7.42073921]
[1766601688472,0.00287001,122.44,122.4,7.3569]
[1766601692770,0.00287001,122.44,122.41,7.3567]
[1766601699381,0.00287001,122.44,122.4,7.3573]
[1766601707292,0.00287001,122.44,122.41,7.3567]
[1766601713612,1.39565367,122.48,122.39,0.06283921]
[1766601713799,1.39565367,122.46,122.38,10.13933298]
[1766601714104,1.39565367,122.46,122.4,7.3569]
[1766601714600,0.06125535,122.44,122.42,0.05656923]
[1766601718602,0.00125535,122.44,122.42,0.05656923]
[1766601758133,0.00125535,122.44,122.42,7.41246923]
[1766601758324,0.00125535,122.44,122.42,0.05656923]
[1766601758523,6.35,122.48,122.42,10.19590221]
[1766601759229,6.35,122.48,122.43,7.3555]
[1766601759434,6.4068692,122.47,122.42,0.05656923]
[1766601759629,6.35,122.45,122.42,0.05656923]
[1766601782144,13.7043,122.45,122.42,0.05656923]
[1766601788455,6.35,122.45,122.42,0.05656923]
[1766601805974,6.27,122.44,122.39,10.13933298]
[1766601806178,6.27,122.44,122.38,7.3581]
[1766601807070,0.05612149,122.42,122.4,0.05796949]
[1766601817988,0.05612149,122.42,122.4,7.41516949]
[1766601818686,6.27,122.44,122.4,7.41516949]
[1766601819682,0.05332755,122.43,122.4,7.41516949]
[1766601825788,0.05332755,122.43,122.4,0.05796949]
[1766601830689,6.26332755,122.43,122.38,17.49773298]
[1766601831093,6.26332755,122.43,122.38,7.3584]
[1766601831793,6.26332755,122.43,122.39,0.05323486]
[1766601838400,6.26332755,122.43,122.39,7.41093486]
[1766601838791,0.05332755,122.43,122.39,7.41093486]
[1766601839394,6.26332755,122.43,122.39,7.41093486]
[1766601841997,6.3,122.45,122.4,7.3571]
[1766601843102,6.3624264,122.44,122.4,7.3571]
[1766601843305,6.3624264,122.44,122.41,0.05471711]
[1766601849903,0.0624264,122.44,122.41,0.05471711]
[1766601850608,6.3624264,122.44,122.41,0.05471711]
[1766601862316,6.3624264,122.44,122.41,0.00471711]
[1766601868819,6.3624264,122.44,122.41,7.36141711]
[1766601870315,7.3526,122.48,122.41,7.36141711]
[1766601870515,6.3318884,122.5,122.41,10.13933298]
[1766601870716,6.3318884,122.5,122.42,10.13933298]
[1766601871319,6.3318884,122.5,122.45,0.05984113]
[1766601871524,0.05344801,122.47,122.41,10.13933298]
[1766601872114,0.05344801,122.47,122.42,7.3559]
[1766601872316,6.39,122.46,122.42,7.3559]
[1766601872517,6.39,122.46,122.43,0.0516411]
[1766601872825,0.05344801,122.47,122.43,7.4069411]
[1766601873026,6.44344801,122.47,122.43,7.4069411]
[1766601878426,6.44344801,122.47,122.44,7.3549]
[1766601881622,6.3318884,122.5,122.45,7.3543]
[1766601882523,0.0589058,122.49,122.46,0.05527004]
[1766601883632,6.4889058,122.49,122.46,0.05527004]
[1766601884625,6.4889058,122.49,122.44,7.3548]
[1766601885632,6.4889058,122.49,122.45,0.05698729]
[1766601891936,13.8409058,122.49,122.45,0.05698729]
[1766601892136,6.43,122.48,122.45,0.05698729]
[1766601899843,6.43,122.48,122.44,7.3549]
[1766601900446,6.43,122.48,122.39,6.31]
[1766601900632,6.43,122.47,122.37,16.44933298]
[1766601900942,4.93593812,122.5,122.41,0.00181999]
[1766601900943,6.43,122.42,122.41,0.00181999]
[1766601901143,6.43,122.42,122.37,6.31]
[1766601901546,6.43,122.42,122.38,7.358]
[1766601901939,0.05374494,122.41,122.39,0.05807876]
[1766601903051,6.18,122.44,122.39,14.12537876]
[1766601903255,6.18,122.44,122.39,14.0673]
[1766601904163,0.051967,122.43,122.4,0.05715954]
[1766601906063,0.051967,122.43,122.4,7.41435954]
[1766601907357,7.11539371,122.5,122.41,14.0666]
[1766601908155,0.06265624,122.47,122.41,14.0666]
[1766601908662,0.06265624,122.47,122.41,7.3566]
[1766601909355,6.18,122.46,122.43,0.05304766]
[1766601911161,6.18,122.46,122.39,7.3575]
[1766601911357,6.18,122.46,122.39,14.0675]
[1766601912152,6.18,122.46,122.41,0.06076623]
[1766601912153,6.23992712,122.44,122.41,0.06076623]
[1766601915963,0.05992712,122.44,122.41,7.41736623]
[1766601916266,6.18,122.46,122.41,14.12736623]
[1766601917168,0.05358042,122.45,122.41,14.12736623]
[1766601919364,0.05358042,122.45,122.42,7.3561]
[1766601922970,0.00358042,122.45,122.43,6.71]
[1766601923663,0.00358042,122.45,122.43,14.0652]
[1766601931269,0.00358042,122.45,122.44,7.3549]
[1766601931469,0.00358042,122.45,122.44,14.4849]
[1766601932480,4.93593812,122.5,122.47,7.3529]
[1766601932670,3.812e-05,122.5,122.48,7.13]
[1766601933475,3.812e-05,122.5,122.48,7.18473182]
[1766601933678,0.05408293,122.5,122.49,7.3519]
[1766601934478,7.26408293,122.5,122.48,0.00473182]
[1766601937971,7.26408293,122.5,122.44,14.4843]
[1766601938878,14.61558293,122.5,122.44,14.4843]
[1766601939074,14.61558293,122.5,122.46,0.05579385]
[1766601939075,7.26408293,122.5,122.46,0.05579385]
[1766601952592,6.64,122.49,122.43,6.88]
[1766601953089,3.812e-05,122.5,122.43,6.88]
[1766601953481,3.812e-05,122.5,122.4,24.81941241]
[1766601953482,3.812e-05,122.5,122.46,6.88]
[1766601953681,0.05183768,122.49,122.47,0.06125429]
[1766601954694,0.05183768,122.49,122.47,7.41435429]
[1766601963591,3.812e-05,122.5,122.48,14.8525]
[1766601964591,0.0517949,122.5,122.48,14.8525]
[1766601966504,0.0017949,122.5,122.48,14.8525]
[1766601967196,0.0017949,122.5,122.49,14.8519]
[1766601970104,0.0017949,122.5,122.47,14.91375429]
[1766601970306,0.0017949,122.5,122.48,7.5]
[1766601971805,0.0017949,122.5,122.47,7.41425429]
[1766601972006,0.0017949,122.5,122.47,0.06125429]
[1766601972211,7.1517949,122.5,122.47,0.06125429]
[1766601972409,7.1517949,122.5,122.44,7.5]
[1766601973108,7.1517949,122.5,122.44,14.8548]
[1766601973510,7.1517949,122.5,122.46,0.05904323]
[1766601974819,14.5031949,122.5,122.46,0.05904323]
[1766601975011,7.15,122.49,122.44,14.8548]
[1766601975918,7.15,122.49,122.45,0.05970578]
[1766601980122,8.54415375,122.49,122.41,17.46101241]
[1766601980326,8.54415375,122.47,122.41,24.96101241]
[1766601980528,8.54415375,122.47,122.41,14.8561]
[1766601981021,1.39415375,122.48,122.43,7.5]
[1766601981217,0.05908032,122.47,122.44,0.05987192]
[1766601983121,7.20908032,122.47,122.44,0.05987192]
[1766601985729,0.05908032,122.47,122.44,0.05987192]
[1766601987330,7.20908032,122.47,122.42,7.3559]
[1766601987532,7.20908032,122.47,122.41,14.8567]
[1766601987726,7.15,122.47,122.41,14.8567]
[1766601988420,0.06207336,122.45,122.43,0.05842748]
[1766601992932,0.00207336,122.45,122.43,14.92392748]
[1766601993237,0.00207336,122.45,122.44,7.51]
[1766601993732,0.00207336,122.45,122.44,14.8649]
[1766601997931,7.38,122.51,122.46,15.2235]
[1766601998135,7.38,122.51,122.46,7.87]
[1766601998935,0.06185944,122.5,122.47,0.05975685]
[1766601999326,0.06185944,122.5,122.47,7.41285685]
[1766602013545,0.06185944,122.5,122.47,15.28285685]
[1766602019552,0.06185944,122.5,122.47,7.92975685]
[1766602032161,0.06185944,122.5,122.47,15.28265685]
[1766602036355,0.06185944,122.5,122.47,7.92975685]
[1766602036552,0.00185944,122.5,122.47,7.92975685]
[1766602036953,7.62808245,122.59,122.49,8.25]
[1766602037160,15.2544297,122.69,122.57,8.25]
[1766602037161,8.31,122.67,122.57,8.25]
[1766602037464,8.31,122.67,122.59,8.25]
[1766602037872,0.05862307,122.64,122.62,0.0580268]
[1766602040772,15.651,122.68,122.62,0.0580268]
[1766602041675,15.651,122.68,122.62,8.3080268]
[1766602041866,0.05311108,122.66,122.62,8.3080268]
[1766602044069,0.00311108,122.66,122.62,8.3080268]
[1766602044375,8.31,122.73,122.63,8.25]
[1766602044778,8.31,122.71,122.63,8.25]
[1766602045175,0.05975699,122.68,122.66,0.06265878]
[1766602045372,0.05975699,122.68,122.63,8.25]
[1766602046269,0.05975699,122.68,122.64,0.05740872]
[1766602048689,15.71055699,122.68,122.64,0.05740872]
[1766602051575,8.4,122.66,122.6,8.21]
[1766602052676,0.05170032,122.64,122.62,0.06022692]
[1766602053277,8.45170032,122.64,122.58,8.21]
[1766602054290,8.45170032,122.64,122.6,0.06292876]
[1766602060997,0.05170032,122.64,122.6,8.24292876]
[1766602066197,8.14170032,122.64,122.6,0.06292876]